Cogmind - Beta 14 @@@ ROGUE MODE // 2024.10.08 @ 19:15:03 // Winter2022/Polymind Player: jimmyl Result: Destroyed by Y-45 Defender with Beam Rifle Performance ------------- Evolutions (1) 500 Regions Visited (2) 400 Robots Destroyed (37) 185 Value Destroyed (1011) 1011 Prototype IDs (0) 0 Alien Tech Used (0) 0 Bonus (1862) 1862 TOTAL SCORE: 3188 Bonus ------- Polymind Skill 1790 High Alert Combat Kills 72 Cogmind --------- Core Integrity 0/400 Matter 0/0 Energy 14/100 System Corruption 5% Temperature Cool (27) Movement Core (50) Location -9/Materials Parts ------- > --- POWER (1) -------- (None) > --- PROPULSION (2) --- (None) > --- UTILITY (3) ------ (None) > --- WEAPON (2) ------- (None) > --- INVENTORY (0) ---- (None) Peak State ------------ > --- POWER ------------ Improved Ion Engine > --- PROPULSION ------- Light Treads Light Treads > --- UTILITY ---------- Heat Sink Heat Sink Light Armor Plating > --- WEAPON ----------- Beam Rifle Heavy Assault Rifle > --- INVENTORY -------- (None) [Rating: 11] Favorites ----------- Power Improved Ion Engine Engine Improved Ion Engine Propulsion Light Treads Treads Light Treads Hover Unit Backup Propulsion I Flight Unit Flight Unit Utility Heat Sink Device Heat Sink Protection Light Armor Plating Weapon Beam Rifle Energy Gun Beam Rifle Ballistic Gun Heavy Assault Rifle Build | -11 -10 -9 ------- Run | Yrd Mat Mat Slots Evolved . | . . . Power . | . . . Propulsion . | . . . Utility . | . . . Weapon . | . . . Parts Attached . | . . . Power . | . . . Engine . | . . . Core . | . . . Reactor . | . . . Propulsion . | . . . Treads . | . . . Leg . | . . . Wheel . | . . . Hover . | . . . Flight . | . . . Utility . | . . . Device . | . . . Storage . | . . . Processor . | . . . Hackware . | . . . Protection . | . . . Artifact . | . . . Weapon . | . . . Energy Gun . | . . . Energy Cannon . | . . . Ballistic Gun . | . . . Ballistic Cannon . | . . . Launcher . | . . . Special Weapon . | . . . Impact Weapon . | . . . Slashing Weapon . | . . . Piercing Weapon . | . . . Special Melee Weapon . | . . . Unidentified Prototypes . | . . . Parts Lost 15 | . 1 14 Power 3 | . . 3 Propulsion 5 | . 1 4 Utility 4 | . . 4 Weapon 3 | . . 3 Highest Loss Streak 7 | . 1 7 To Critical Strikes . | . . . Average Slot Usage (%) 93 | . 79 95 Engine 13 | . 24 11 Treads 21 | . . 23 Flight 3 | . 29 . Device 20 | . . 23 Protection 8 | . . 9 Energy Gun 10 | . . 11 Ballistic Gun 13 | . 24 12 Peak Build Rating 11 | . 4 11 Average Rating 9 | . 3 10 On Entrance 1 | . . 4 Naked Turns 21 | . 12 9 Heaviest Build 18 | . 4 18 Greatest Support 40 | 3 8 40 Greatest Overweight (x) . | . . . Average Overweight (x) . | . . . Largest Inventory Capacity 1 | . . 1 Average Capacity . | . . . Most Carried . | . . . Average Carried . | . . . Final Capacity . | . . . Final Carried . | . . . Class Distribution -------------------- 85% | Sentry 13% | Swarmer Dominant Class ---------------- Swarmer | -10/Materials Sentry | -9/Materials Resources | -11 -10 -9 ----------- Run | Yrd Mat Mat Matter Collected 332 | . 38 294 Remotely . | . . . Salvage Created 1282 | . 99 1183 Parts 73 | . 9 64 Haulers Intercepted . | . . . Recyclers Shooed . | . . . Parts Field Recycled . | . . . Retrieved Matter . | . . . Parts Self-Destructed . | . . . Prevented . | . . . Kills | -11 -10 -9 ------- Run | Yrd Mat Mat Combat Hostiles Destroyed 29 | . 4 25 Guns 29 | . 4 25 Classes Destroyed 8 | . 3 5 Worker 1 | . . 1 Builder 1 | . . 1 Operator 1 | . 1 . Watcher 5 | . 1 4 Swarmer 8 | . 4 4 Grunt 13 | . . 13 Brawler 1 | . . 1 Sentry 7 | . . 7 Best Kill Streak 4 | . 3 4 Combat Bots Only 4 | . 2 4 Max Kills in Single Turn 1 | . 1 1 Gunslinging . | . . . Exploded . | . . . Melee . | . . . Uniques/NPCs Destroyed . | . . . Combat | -11 -10 -9 -------- Run | Yrd Mat Mat Hostile Shots Fired 197 | . 24 173 Missed 37 | . 10 27 Damage Taken 1999 | . 122 1877 Core 470 | . 61 409 Absorbed by Shields . | . . . Ignored by Resistances 30 | . . 30 Core Remaining (%) 87 | 100 75 . Volleys Fired 161 | . 46 115 Largest 2 | . 1 2 Hottest 79 | . 20 79 Shots Fired 245 | . 46 199 Gun 245 | . 46 199 Cannon . | . . . Launcher . | . . . Special . | . . . Kinetic 148 | . 46 102 Thermal 97 | . . 97 Explosive . | . . . Electromagnetic . | . . . Robot Hit Streak 15 | . 5 15 Robot Miss Streak 8 | . 4 8 Penetration Max . | . . . Secondary Targets 1 | . . 1 Max Gunslinging Chain 1 | . . 1 Shots Hit Robots 142 | . 21 121 Core Hits 55 | . 10 45 Critical Kills 1 | . . 1 Critical Parts Destroyed 2 | . . 2 Critical Strikes 13 | . . 13 Burn 10 | . . 10 Destroy 3 | . . 3 Melee Attacks . | . . . Impact . | . . . Slashing . | . . . Piercing . | . . . Sneak Attacks . | . . . Combat Hostiles . | . . . Follow-up Attacks . | . . . Damage Inflicted 1957 | . 176 1781 Guns 1956 | . 176 1780 Cannons . | . . . Explosions . | . . . Melee . | . . . Ramming 1 | . . 1 Kinetic 981 | . 176 805 Thermal 975 | . . 975 Explosive . | . . . Electromagnetic . | . . . Impact . | . . . Slashing . | . . . Piercing . | . . . Highest Corruption 5 | . . 5 Average Corruption 5 | . . 5 Corruption Purged . | . . . Corruption Blocked . | . . . Effects 17 | . . 17 Message Errors 3 | . . 3 Matter Fused 8 | . . 8 Heat Flow Errors 1 | . . 1 Energy Discharges 1 | . . 1 Data Loss (minor) 3 | . . 3 Misfires 1 | . . 1 Overload Shots . | . . . Overflow Damage . | . . . Projectiles . | . . . Explosions . | . . . Melee . | . . . Knockbacks . | . . . Impact . | . . . Kinetic . | . . . Secondary . | . . . Self-Inflicted Damage . | . . . Shots . | . . . Rammed 3 | . . 3 Targets Rammed 3 | . . 3 Kicked . | . . . Crushed . | . . . Highest Temperature 242 | . 31 242 Average Temperature 27 | . 10 32 Received Heat Transfer 675 | . . 675 Siege Activations . | . . . Robots Corrupted . | . . . Combat Hostiles . | . . . Parts Fried . | . . . Impact Corruptions . | . . . Robots Melted . | . . . Combat Hostiles . | . . . Parts Melted 6 | . . 6 Heat Transferred 3145 | . . 3145 Parts Sabotaged . | . . . Parts Stolen . | . . . Parts Stripped . | . . . Power Chain Reactions . | . . . Alert | -11 -10 -9 ------- Run | Yrd Mat Mat Peak Influence 641 | . 188 641 Initial 79 | . . 79 Average 205 | . 122 214 Maximum Alert Level 2 | . . 2 Low Security (%) 61 | 100 100 57 Level 1 13 | . . 15 Level 2 24 | . . 27 Level 3 . | . . . Level 4 . | . . . Level 5 . | . . . High Security . | . . . Max Security . | . . . Squads Dispatched 5 | . 2 3 Investigation . | . . . Extermination . | . . . Reinforcement 5 | . 2 3 Assault . | . . . Garrison . | . . . Intercept . | . . . Searches Triggered . | . . . Construction Impeded . | . . . Haulers Reinforced . | . . . Active Scanning Responses . | . . . Cargo Convoy Interrupts . | . . . Stealth | -11 -10 -9 --------- Run | Yrd Mat Mat Distress Signals 3 | . . 3 Communications Jammed . | . . . Distress Signals . | . . . Times Spotted 64 | . 15 49 Peak Tracking Total 4 | . 4 4 Tactical Retreats 6 | . . 6 Traps | -11 -10 -9 ------- Run | Yrd Mat Mat Traps Triggered 2 | . . 2 Indirectly . | . . . Trap Hack Attempts . | . . . Triggered . | . . . Disarmed . | . . . Reprogrammed . | . . . Reused . | . . . Traps Extracted . | . . . Installed . | . . . Triggered . | . . . Machines | -11 -10 -9 ---------- Run | Yrd Mat Mat Machines Disabled 2 | . . 2 Max in Single Turn 1 | . . 1 Machines Repaired . | . . . Machines Dismantled . | . . . Machines Sabotaged . | . . . Overloaded Fab Kills . | . . . Hacking | -11 -10 -9 --------- Run | Yrd Mat Mat Machines Accessed 4 | . 2 2 Terminals 2 | . . 2 Fabricators . | . . . Repair Stations 1 | . 1 . Recycling Units 1 | . 1 . Scanalyzers . | . . . Garrison Access . | . . . Total Hacks 9 | . 6 3 Successful 4 | . 3 1 Failed 5 | . 3 2 Catastrophic . | . . . Database Lockouts . | . . . Manual 1 | . . 1 Terminals 3 | . . 3 Fabricators . | . . . Repair Stations 2 | . 2 . Recycling Units 4 | . 4 . Scanalyzers . | . . . Garrison Access . | . . . Terminal Hacks . | . . . Fabricator Hacks . | . . . Repair Station Hacks 1 | . 1 . Refit 1 | . 1 . Recycling Unit Hacks 2 | . 2 . Retrieve Matter 2 | . 2 . Scanalyzer . | . . . Garrison Access Hacks . | . . . Unauthorized Hacks 1 | . . 1 Terminals 1 | . . 1 Assimilate 1 | . . 1 Fabricators . | . . . Repair Stations . | . . . Recycling Units . | . . . Scanalyzers . | . . . Garrison Access . | . . . Data Cores Recovered . | . . . Used . | . . . Hacking Detections 2 | . 1 1 Full Trace Events . | . . . Feedback Events . | . . . Feedback Blocked . | . . . Robot Schematics Acquired . | . . . Robots Built . | . . . Authchips . | . . . Time . | . . . Total Robot Build Rating . | . . . Part Schematics Acquired . | . . . Parts Built . | . . . Authchips . | . . . Time . | . . . Total Part Build Rating . | . . . Parts Repaired . | . . . Time . | . . . Parts Recycled . | . . . Recycled Matter . | . . . Retrieved Matter . | . . . Retrieved Components . | . . . Parts Scanalyzed . | . . . Part Schematics Acquired . | . . . Parts Damaged . | . . . Bothacking | -11 -10 -9 ------------ Run | Yrd Mat Mat Used RIF Installer . | . . . Robots Hacked 4 | . 1 3 Non-combat . | . . . Combat 4 | . 1 3 Robot Hacks Applied 4 | . 1 3 find_shortcuts 4 | . 1 3 Relay Couplers Released . | . . . Fabnet Peak Effective % . | . . . Robots Rewired . | . . . Allies Hacked . | . . . Hacks Repelled . | . . . Allies | -11 -10 -9 -------- Run | Yrd Mat Mat Total Allies 1 | . . 1 Largest Group 1 | . . 1 Highest-Rated Group 9 | . . 9 Highest-Rated Ally 9 | . . 9 Total Orders . | . . . Ally Attacks . | . . . Total Damage . | . . . Kills . | . . . Allies Corrupted . | . . . Allies Melted . | . . . Intel | -11 -10 -9 ------- Run | Yrd Mat Mat Robot Analysis Total 2 | . 1 1 Derelict Logs Recovered . | . . . Drone Launches . | . . . Drone Recoveries . | . . . Exploration | -11 -10 -9 ------------- Run | Yrd Mat Mat Turns Passed 2816 | 1 268 2547 Spaces Moved 1193 | 1 416 776 Core 113 | 1 12 100 Treads 612 | . . 612 Legs . | . . . Wheels . | . . . Hover 76 | . 16 60 Flight 392 | . 388 4 Fastest Speed 37 | 50 37 37 Average Speed 104 | 50 40 139 Slowest Speed 160 | 50 80 160 Overloaded Moves . | . . . Propulsion Burnouts . | . . . Robots Hopped 1 | . . 1 Cave-ins Triggered . | . . . Exploration Rate (%) 48 | 2 65 77 Regions Visited 2 Branch Regions . Pre-discovered Areas . | . . . Known Exits Taken . | . . . Unknown Exits Taken 2 | 1 1 . Scrap Searched . | . . . Spaces Dug . | . . . Terrain Destroyed . | . . . Melee . | . . . Projectile . | . . . AOE . | . . . Terrain Rammed . | . . . Walls Destroyed . | . . . Machines Disabled . | . . . Actions | -11 -10 -9 --------- Run | Yrd Mat Mat Total 2524 | 1 476 2047 Wait 1167 | 1 15 1151 Move 1189 | . 415 774 Hop 1 | . . 1 Pick Up . | . . . Fast Attach . | . . . Attach . | . . . Detach . | . . . Swap . | . . . Drop . | . . . Fire 161 | . 46 115 Melee . | . . . Ram . | . . . Kick . | . . . Crush 3 | . . 3 Escape Stasis . | . . . Rewire 3 | . . 3 Trap . | . . . Miscellaneous . | . . . Route ------- -11/Scrapyard -10/Materials (discovered 4 exits: *Mat x3 / [*Min]) -9/Materials (discovered 4 exits: [*Mat x2] / [*Min] / [*Sto]) History --------- Turn | Location | Event 2 | -11/Scrapyard | Discovered new exit (range 0) 2 | -11/Scrapyard | Entered Materials 35 | -10/Materials | Discovered new exit (range 16) 70 | -10/Materials | Discovered new exit (range 15) 118 | -10/Materials | Discovered new exit (range 9) 251 | -10/Materials | Discovered new exit (range 10) 270 | -10/Materials | Entered another Materials area 1740 | -9/Materials | Discovered new exit (range 16) 1954 | -9/Materials | Discovered new exit (range 10) 2102 | -9/Materials | Core integrity fell below 50% 2165 | -9/Materials | Lost 7 parts (2p4n1w) 2205 | -9/Materials | Discovered new exit (range 10) 2510 | -9/Materials | Discovered new exit (range 14) 2701 | -9/Materials | Core integrity fell below 20% 2812 | -9/Materials | Lost 3 parts (1p1u1w) 2817 | -9/Materials | Destroyed by Y-45 Defender with Beam Rifle Last Messages --------------- 02735_ Acquired 3 matter. 02752_ System corrupted: Matter fused (-10). 02766_ Hvy. Assault Rifle destroyed. 02778_ Lgt. Armor Plating destroyed. 02780_ PNMW:%QAY:YOF9NGT5DWEDHAQPDDXTJ|/:3W